bitfinex/quotes_ETHUSD_20250520
["timestamp","ask_amount","ask_price","bid_price","bid_amount"]
[1747723918979,3.92711278,2546.4,2546.3,47.84107]
[1747723919184,3.92711278,2546.4,2546.3,42.319738]
[1747723919388,3.92711278,2546.4,2546.3,41.03395374]
[1747723920192,3.92711278,2546.4,2546.3,24.90618274]
[1747723920508,3.92711278,2546.4,2546.3,35.86529474]
[1747723922808,3.92711278,2546.4,2546.3,33.41964874]
[1747723922972,3.92711278,2546.4,2546.3,32.97420574]
[1747723923604,3.92711278,2546.4,2546.3,32.35442274]
[1747723924184,3.92695857,2546.5,2546.4,8.7916]
[1747723924516,3.92695857,2546.5,2546.4,44.450683]
[1747723924713,4.75204786,2547.3,2546.4,40.19735]
[1747723924920,4.75204786,2547.3,2546.4,8.7916]
[1747723925218,3.92690391,2546.6,2546.4,8.7916]
[1747723925390,3.92690391,2546.6,2546.5,27.42669727]
[1747723925596,3.92690391,2546.6,2546.5,15.43048427]
[1747723925799,3.92690391,2546.6,2546.5,11.42338427]
[1747723925994,3.92690391,2546.6,2546.5,0.84268427]
[1747723926221,3.92690391,2546.6,2546.5,8.42868427]
[1747723926458,5.53726043,2546.6,2546.5,8.42868427]
[1747723926959,5.53726043,2546.6,2546.5,8.05450153]
[1747723927636,9.2638836,2546.6,2546.5,0.46850153]
[1747723928151,17.2638836,2546.6,2546.5,0.46850153]
[1747723928730,17.2638836,2546.6,2546.5,0.08784403]
[1747723928931,5.24931278,2546.4,2546.3,16.947]
[1747723929247,15.75583013,2546.4,2546.3,16.947]
[1747723929554,7.75583013,2546.4,2546.3,16.947]
[1747723929713,7.20583013,2546.4,2546.3,16.947]
[1747723929914,4.69931278,2546.4,2546.3,16.947]
[1747723930142,3.92711278,2546.4,2546.3,16.947]
[1747723933273,0.8222,2547.0,2546.3,60.056439]
[1747723933418,3.92692149,2546.6,2546.5,0.7938]
[1747723933625,3.92692149,2546.6,2546.5,35.328338]
[1747723934030,3.92692149,2546.6,2546.5,28.414338]
[1747723934253,3.92692149,2546.6,2546.5,22.064218]
[1747723934771,3.92692149,2546.6,2546.5,22.43849031]
[1747723934951,3.92692149,2546.6,2546.5,22.81474987]
[1747723935155,3.92692149,2546.6,2546.5,22.43849031]
[1747723935459,3.92692149,2546.6,2546.5,15.95827231]
[1747723936058,3.92692149,2546.6,2546.5,27.83165431]
[1747723936756,3.92692149,2546.6,2546.5,26.18016831]
[1747723936960,3.92692149,2546.6,2546.5,24.07307231]
[1747723937372,3.92692149,2546.6,2546.5,15.95827231]
[1747723937842,3.92692149,2546.6,2546.5,24.86819031]
[1747723938042,3.92692149,2546.6,2546.5,24.24691031]
[1747723938579,3.92692149,2546.6,2546.5,24.11697931]
[1747723938952,3.92692149,2546.6,2546.5,7.95827231]
[1747723939346,3.92692149,2546.6,2546.5,0.37427231]
[1747723939552,4.71228052,2546.6,2546.5,0.37427231]
[1747723939760,4.71228052,2546.6,2546.5,7.95827231]
[1747723941451,5.53108052,2546.6,2546.5,7.95827231]
[1747723942197,3.92692149,2546.6,2546.5,7.95827231]
[1747723942347,3.92692149,2546.6,2546.5,10.93460431]
[1747723942746,3.92692149,2546.6,2546.5,7.95827231]
[1747723942947,4.70702149,2546.6,2546.5,7.95827231]
[1747723943148,4.70702149,2546.6,2546.5,0.37427231]
[1747723943378,5.57039052,2546.6,2546.5,7.95827231]
[1747723943641,5.57039052,2546.6,2546.5,0.37427231]
[1747723943842,8.74701369,2546.6,2546.5,0.37427231]
[1747723944052,8.74701369,2546.6,2546.5,7.95827231]
[1747723944360,9.27421369,2546.6,2546.5,7.95827231]
[1747723945046,9.27421369,2546.6,2546.5,7.584]
[1747723945880,4.72211278,2546.4,2546.3,24.532]
[1747723946086,6.43871362,2546.4,2546.3,24.532]
[1747723950063,6.43871362,2546.4,2546.3,16.947]
[1747723951054,6.98871362,2546.4,2546.3,16.947]
[1747723952399,6.43871362,2546.4,2546.3,16.947]
[1747723952813,5.64371362,2546.4,2546.3,16.947]
[1747723955905,6.44531362,2546.4,2546.3,16.947]
[1747723956112,6.44531362,2546.4,2546.3,24.532]
[1747723959980,3.92711278,2546.4,2546.3,24.532]
[1747723960382,3.92711278,2546.4,2546.3,63.741718]
[1747723960589,3.92711278,2546.4,2546.3,27.159517]
[1747723960795,3.92711278,2546.4,2546.3,24.532]
[1747723961836,3.92711278,2546.4,2546.3,24.90701831]
[1747723963284,3.92711278,2546.4,2546.3,24.532]
[1747723963810,5.1870644,2546.4,2546.3,24.53]
[1747723964515,5.1870644,2546.4,2546.3,16.947]
[1747723964729,5.1870644,2546.4,2546.3,24.53]
[1747723965307,5.1870644,2546.4,2546.3,16.947]
[1747723965620,5.1870644,2546.4,2546.3,24.53]
[1747723975309,5.1870644,2546.4,2546.3,16.947]
[1747723975509,5.1870644,2546.4,2546.3,24.53]
[1747723975706,5.1870644,2546.4,2546.3,16.947]
[1747723975707,6.71329159,2546.4,2546.3,16.947]
[1747723976008,7.26329159,2546.4,2546.3,24.53]
[1747723978835,15.26329159,2546.4,2546.3,24.53]
[1747723980836,15.26329159,2546.4,2546.3,16.947]
[1747723981047,15.26329159,2546.4,2545.5,16.955]
[1747723981048,3.92834695,2545.6,2545.5,16.955]
[1747723981243,3.92834695,2545.6,2545.4,0.62657572]
[1747723981244,3.92850127,2545.5,2545.4,0.62657572]
[1747723981550,5.27046432,2545.2,2544.7,1.25315144]
[1747723981705,17.24284792,2545.2,2544.7,1.25315144]
[1747723982019,13.28548189,2544.8,2544.7,1.25315144]
[1747723982346,14.81170908,2544.8,2544.7,1.25315144]
[1747723983045,3.9305086,2544.2,2544.1,0.05]
[1747723985101,3.9305086,2544.2,2544.1,23.403591]
[1747723985306,3.9305086,2544.2,2544.1,8.3896]
[1747723989010,3.9305086,2544.2,2544.1,11.641711]
[1747723989248,3.9305086,2544.2,2544.1,8.3896]
[1747723989609,3.9305086,2544.2,2544.1,10.7883]
[1747723989810,3.9305086,2544.2,2544.1,8.3896]
[1747723990043,3.9305086,2544.2,2544.1,15.3483]
[1747723990243,3.9305086,2544.2,2544.1,12.9873]
[1747723990442,3.9305086,2544.2,2544.1,8.3896]
[1747723990643,3.9305086,2544.2,2544.1,15.3483]
[1747723990849,3.9305086,2544.2,2544.1,8.3896]
[1747723992649,3.9305086,2544.2,2544.1,18.131072]
[1747723992855,3.9305086,2544.2,2544.1,8.3896]
[1747723995152,3.9305086,2544.2,2544.1,16.9725]
[1747723995358,3.9305086,2544.2,2544.1,8.3896]
[1747723995869,3.9305086,2544.2,2544.1,12.740069]
[1747723996281,3.9305086,2544.2,2544.1,8.3896]
[1747723996486,3.9305086,2544.2,2544.1,10.922673]
[1747723996665,3.9305086,2544.2,2544.1,8.3896]
[1747723997087,3.9305086,2544.2,2544.1,11.229736]
[1747723997762,3.93040878,2544.3,2544.2,0.8185]
[1747723997967,3.9292581,2545.1,2544.2,20.890428]
[1747723998181,3.9292581,2545.1,2544.2,0.8185]
[1747723998781,3.93035412,2544.3,2544.2,0.8185]
[1747723999083,3.93035412,2544.3,2544.2,15.492728]
[1747723999255,3.93035412,2544.3,2544.2,12.276888]
[1747723999451,3.93035412,2544.3,2544.2,11.743656]
[1747723999749,3.93035412,2544.3,2544.2,12.11719911]
[1747723999947,3.93035412,2544.3,2544.2,1.19204311]
[1747724000271,4.44005389,2544.3,2544.2,0.37354311]
[1747724001387,3.9305086,2544.2,2544.1,7.636]
[1747724003902,5.2917086,2544.2,2544.1,0.05]
[1747724004202,4.7417086,2544.2,2544.1,0.05]
[1747724006081,5.2917086,2544.2,2544.1,0.05]
[1747724006365,6.9759254,2544.2,2544.1,0.05]
[1747724007992,5.6147254,2544.2,2544.1,0.05]
[1747724008190,3.9305086,2544.2,2544.1,0.05]
[1747724011337,8.44419481,2544.2,2544.1,0.05]
[1747724013343,26.70419481,2544.2,2544.1,0.05]
[1747724016402,27.60419481,2544.2,2544.1,0.05]
[1747724017603,26.70419481,2544.2,2544.1,0.05]
[1747724017940,30.21164161,2544.2,2544.1,0.05]
[1747724018441,3.9320541,2543.2,2543.1,0.05]
[1747724021665,3.9320541,2543.2,2543.1,18.755807]
[1747724021969,3.93178862,2543.4,2543.2,8.0]
[1747724022130,3.93200008,2543.3,2543.2,8.0]
[1747724022327,3.93200008,2543.3,2543.2,30.875633]
[1747724022866,3.18018621,2544.2,2543.2,30.875633]
[1747724022867,3.93163959,2543.5,2543.4,0.8224]
[1747724023164,3.93163959,2543.5,2543.4,28.423251]
[1747724023664,3.93163959,2543.5,2543.4,27.478251]
[1747724024362,3.93163959,2543.5,2543.4,22.292955]
[1747724024561,3.93163959,2543.5,2543.4,17.544408]
[1747724024970,3.93163959,2543.5,2543.4,26.38567007]
[1747724025168,3.93163959,2543.5,2543.4,17.24966207]
[1747724025968,3.93163959,2543.5,2543.4,38.36969207]
[1747724026477,3.9305086,2544.2,2543.6,0.8204]
[1747724026637,3.9312812,2543.7,2543.6,0.8204]
[1747724027681,3.9312812,2543.7,2543.6,8.4054]
[1747724027841,3.9312812,2543.7,2543.6,8.42626207]
[1747724031606,7.94036741,2543.7,2543.6,0.37509768]
[1747724031883,9.12751898,2543.7,2543.6,0.37509768]
[1747724032980,3.9317449,2543.4,2543.3,0.46616439]
[1747724033572,3.9317449,2543.4,2543.3,8.05216439]
[1747724034480,3.9317449,2543.4,2543.3,7.586]
[1747724043676,3.9320541,2543.2,2543.1,0.8523]
[1747724043879,3.93197661,2543.3,2543.2,0.8023]
[1747724044187,3.93197661,2543.3,2543.2,14.596031]
[1747724045669,3.93197661,2543.3,2543.2,5.1623]
[1747724046300,3.93197661,2543.3,2543.2,5.53812019]
[1747724047006,3.93197661,2543.3,2543.2,1.17812019]
[1747724047302,3.93197661,2543.3,2543.2,25.69161419]
[1747724049303,3.93197661,2543.3,2543.2,22.15252019]
[1747724049609,3.93197661,2543.3,2543.2,21.75252019]
[1747724049900,3.93197661,2543.3,2543.2,21.31343319]
[1747724050204,3.93197661,2543.3,2543.2,16.19259919]
[1747724051683,3.93197661,2543.3,2543.2,16.81881917]
[1747724051880,3.9306631,2544.1,2543.4,0.7706]
[1747724052095,3.9305086,2544.2,2543.6,8.7706]
[1747724052294,3.9312812,2543.7,2543.6,14.6636]
[1747724052485,3.9312812,2543.7,2543.6,49.52687]
[1747724052681,3.9312812,2543.7,2543.6,28.967763]
[1747724052901,3.9312812,2543.7,2543.6,15.586]
[1747724053591,3.9312812,2543.7,2543.6,15.96182019]
[1747724060313,4.71752376,2543.7,2543.6,7.96182019]
[1747724060514,5.51062376,2543.7,2543.6,0.37582019]
[1747724060691,5.51062376,2543.7,2543.6,7.96082019]
[1747724061014,5.51062376,2543.7,2543.6,7.585]
[1747724063818,5.47012376,2543.7,2543.6,7.585]
[1747724065014,6.02012376,2543.7,2543.6,7.585]
[1747724065413,6.02012376,2543.7,2543.1,0.51971353]
[1747724065414,3.9320541,2543.2,2543.1,0.51971353]
[1747724065585,5.5279518,2543.2,2543.1,0.51971353]
[1747724066398,5.5279518,2543.2,2543.1,0.05]
[1747724067724,3.9320541,2543.2,2543.1,0.05]
[1747724070508,4.7308541,2543.2,2543.1,0.05]
[1747724071530,3.9320541,2543.2,2543.1,0.05]
[1747724075337,4.7621541,2543.2,2543.1,0.05]
[1747724079529,3.9320541,2543.2,2543.1,0.05]
[1747724079747,3.9320541,2543.2,2543.1,0.8411]
[1747724080038,3.9320541,2543.2,2543.1,21.820193]
[1747724080331,3.9320541,2543.2,2543.1,35.00885628]
[1747724080536,3.9320541,2543.2,2543.1,26.49031428]
[1747724080831,3.9320541,2543.2,2543.1,22.18021528]
[1747724082537,3.9320541,2543.2,2543.1,16.28228428]
[1747724083033,3.9320541,2543.2,2543.1,14.01475828]
[1747724084845,5.46108725,2543.2,2543.1,8.00839728]
[1747724085732,3.9320541,2543.2,2543.1,8.00839728]
[1747724101644,6.25398725,2543.2,2543.1,8.00839728]
[1747724101845,15.82257827,2543.2,2543.1,0.42539728]
[1747724102571,15.82257827,2543.2,2543.1,0.05]
[1747724103361,4.71609137,2542.4,2542.3,0.46971353]
[1747724103539,14.24512452,2542.4,2542.3,0.46971353]
[1747724106371,3.93360081,2542.2,2542.1,7.634]
[1747724109336,3.93360081,2542.2,2542.1,49.280395]
[1747724109571,3.93360081,2542.2,2542.1,25.77095543]
[1747724109754,3.93220872,2543.1,2542.2,0.7973]
[1747724110056,0.7776,2543.2,2542.4,0.7973]
[1747724110057,3.93313831,2542.5,2542.4,0.7973]
[1747724110257,3.93313831,2542.5,2542.4,9.910412]
[1747724111043,3.93313831,2542.5,2542.4,10.28552043]
[1747724111266,3.93313831,2542.5,2542.4,9.48652043]
[1747724111854,3.93313831,2542.5,2542.4,8.18910843]
[1747724112055,3.93313831,2542.5,2542.4,1.17240843]
[1747724113046,3.93306065,2542.6,2542.4,27.98299143]
[1747724113350,3.93306065,2542.6,2542.5,19.005505]
[1747724114272,3.93306065,2542.6,2542.5,19.38061343]
[1747724114465,4.75752148,2543.3,2542.5,20.15331343]
[1747724114665,3.93278494,2542.8,2542.6,8.3527]
[1747724114971,3.93278494,2542.8,2542.7,31.33797]
[1747724115493,3.93278494,2542.8,2542.7,16.978]
[1747724115689,3.93278494,2542.8,2542.7,36.73567]
[1747724116209,3.93278494,2542.8,2542.7,21.20113]
[1747724116362,3.93278494,2542.8,2542.7,16.978]
[1747724116694,3.93278494,2542.8,2542.7,17.35310843]
[1747724118406,3.93278494,2542.8,2542.7,31.77170943]
[1747724118766,3.93278494,2542.8,2542.7,30.00691243]
[1747724119167,3.9317449,2543.4,2542.8,8.8268]
[1747724119377,3.93125676,2543.8,2542.8,8.8268]
[1747724119378,3.93251799,2542.9,2542.8,8.8268]
[1747724119578,3.93251799,2542.9,2542.8,28.0902]
[1747724120311,3.93240505,2543.0,2542.8,28.0902]
[1747724120596,3.93240505,2543.0,2542.9,26.560074]
[1747724120905,3.93240505,2543.0,2542.9,26.93518243]
[1747724121089,3.93240505,2543.0,2542.9,23.23004043]
[1747724121293,3.93228991,2543.1,2543.0,8.7781]
[1747724121491,3.93220872,2543.1,2543.0,26.156029]
[1747724121712,3.93220872,2543.1,2543.0,14.880202]
[1747724122088,3.93220872,2543.1,2543.0,15.25531043]
[1747724126323,3.93220872,2543.1,2543.0,8.37510843]
[1747724127301,3.93220872,2543.1,2543.0,0.37510843]
[1747724130406,3.93236335,2543.0,2542.9,0.37510843]
[1747724130607,4.71879021,2543.0,2542.9,8.37510843]
[1747724131310,3.93236335,2543.0,2542.9,21.26986643]
[1747724132050,3.93236335,2543.0,2542.9,22.07236643]
[1747724132451,3.93236335,2543.0,2542.9,21.29990143]
[1747724132828,3.93236335,2543.0,2542.9,26.17166643]
[1747724133169,3.93236335,2543.0,2542.9,9.17760843]
[1747724133453,3.93227222,2543.1,2542.9,26.17166643]
[1747724133655,3.93227222,2543.1,2542.9,9.17760843]
[1747724133825,3.93227222,2543.1,2543.0,30.913524]
[1747724134030,3.93193492,2543.3,2543.0,30.432324]
[1747724134214,3.9320541,2543.2,2543.1,33.461447]
[1747724134411,3.9320541,2543.2,2543.1,38.934779]
[1747724134917,3.93170546,2543.5,2543.3,0.7521]
[1747724135220,0.7734,2544.4,2543.5,8.7521]
[1747724135433,3.93139121,2543.7,2543.5,8.7521]
[1747724135615,3.93139121,2543.7,2543.6,11.164723]
[1747724136217,3.93139121,2543.7,2543.6,9.321245]
[1747724136723,0.8136,2543.9,2543.6,12.58700843]
[1747724136939,3.9312812,2543.7,2543.6,7.95310843]
[1747724137126,3.9312812,2543.7,2543.6,24.41224443]
[1747724137332,3.9312812,2543.7,2543.6,45.73820743]
[1747724137532,3.9312812,2543.7,2543.6,46.67877243]
[1747724137836,3.9312812,2543.7,2543.6,40.56523243]
[1747724138247,3.9312812,2543.7,2543.6,33.80068443]
[1747724138455,0.8057,2544.6,2543.7,8.0]
[1747724138618,3.93069257,2544.1,2543.9,8.0]
[1747724138823,3.17554955,2544.1,2544.0,26.707055]
[1747724139053,3.17554955,2544.1,2544.0,28.783376]
[1747724139231,3.17554955,2544.1,2544.0,22.576906]
[1747724140218,3.17554955,2544.1,2544.0,21.639471]
[1747724140418,3.17554955,2544.1,2544.0,22.01457943]
[1747724140619,3.17554955,2544.1,2544.0,19.51457943]
[1747724141150,4.00774955,2544.1,2544.0,8.37510843]
[1747724141334,4.00774955,2544.1,2544.0,15.94610843]
[1747724141541,4.00774955,2544.1,2544.0,7.94610843]
[1747724141730,4.00774955,2544.1,2544.0,7.571]
[1747724147359,3.17554955,2544.1,2544.0,7.571]
[1747724147938,3.17554955,2544.1,2544.0,36.96988]
[1747724148164,3.17554955,2544.1,2544.0,18.47820928]
[1747724149773,3.17554955,2544.1,2544.0,15.94620928]
[1747724150527,3.17554955,2544.1,2544.0,7.94620928]
[1747724150726,3.17554955,2544.1,2544.0,21.83745428]
[1747724151069,3.17554955,2544.1,2544.0,10.91630928]
[1747724151555,3.17554955,2544.1,2544.0,11.72550928]
[1747724152296,3.93007458,2544.5,2544.0,11.72550928]
[1747724152597,3.9305086,2544.2,2544.1,31.768265]
[1747724152907,3.9305086,2544.2,2544.1,23.460911]
[1747724153199,3.9305086,2544.2,2544.1,17.114417]
[1747724153378,3.9305086,2544.2,2544.1,17.95846769]
[1747724153883,3.93041007,2544.3,2544.1,17.95846769]
[1747724154089,0.8559,2544.9,2544.2,37.535128]
[1747724154290,3.92958189,2544.8,2544.1,0.84405069]
[1747724154508,3.93028404,2544.4,2544.2,0.8121]
[1747724154803,3.93028404,2544.4,2544.1,0.84405069]
[1747724154804,3.9305086,2544.2,2544.1,0.84405069]
[1747724154982,3.9305086,2544.2,2544.1,9.19301869]
[1747724157509,3.93049226,2544.3,2544.1,9.19301869]
[1747724157671,3.9305086,2544.2,2544.1,0.84405069]
[1747724158078,3.9305086,2544.2,2544.1,19.37246769]
[1747724158413,3.9305086,2544.2,2544.1,0.84405069]
[1747724158577,3.9305086,2544.2,2544.1,20.05950569]
[1747724158769,3.9305086,2544.2,2544.1,15.49950569]
[1747724160315,3.9305086,2544.2,2544.1,3.08885669]
[1747724162423,3.93028557,2544.4,2544.2,0.7908]
[1747724162713,3.93028557,2544.4,2544.3,17.199803]
[1747724163515,3.93028557,2544.4,2544.3,15.505514]
[1747724163717,3.93028557,2544.4,2544.3,11.761513]
[1747724164294,3.93028557,2544.4,2544.3,12.60556369]
[1747724167921,3.93028557,2544.4,2544.3,12.13672228]
[1747724169036,3.92965074,2544.8,2544.4,8.0]
[1747724169244,3.97949254,2544.9,2544.6,8.7552]
[1747724169464,3.97949254,2544.9,2544.7,21.96919]
[1747724169655,3.97949254,2544.9,2544.8,16.965]
[1747724169934,3.97949254,2544.9,2544.8,33.321544]
[1747724170092,3.97949254,2544.9,2544.8,27.208004]
[1747724170293,3.97949254,2544.9,2544.8,26.7571]
[1747724171340,4.73989254,2544.9,2544.8,24.531]
[1747724171640,4.73989254,2544.9,2544.8,24.90620928]
[1747724172502,3.97949254,2544.9,2544.8,34.79158428]
[1747724173544,0.05,2544.9,2544.8,42.79158428]
[1747724173832,3.97942748,2544.9,2544.8,42.03380228]
[1747724174034,4.74732748,2544.9,2544.8,24.90620928]
[1747724176539,4.74732748,2544.9,2544.8,7.92869848]
[1747724177456,3.97942748,2544.9,2544.8,7.92869848]
[1747724177969,0.05,2544.9,2544.8,31.84330448]
[1747724178120,3.97942748,2544.9,2544.8,31.84330448]
[1747724178955,3.97942748,2544.9,2544.8,30.88749448]
[1747724179451,3.97942748,2544.9,2544.8,26.92565448]
[1747724179746,0.05,2544.9,2544.8,31.66403637]
[1747724179944,0.05,2545.9,2545.1,4.73787304]
[1747724179945,3.92837471,2545.6,2545.1,4.73787304]
[1747724180144,3.92827764,2545.7,2545.2,49.863443]
[1747724180352,3.92835039,2545.6,2545.3,52.349243]
[1747724180664,3.97799474,2545.9,2545.4,27.163027]
[1747724180838,3.92803833,2545.8,2545.5,0.8088]
[1747724181038,3.92819263,2545.7,2545.6,16.962]
[1747724181250,3.92819263,2545.7,2545.6,25.4529]
[1747724181557,3.92819263,2545.7,2545.6,19.27682]
[1747724181981,3.92819263,2545.7,2545.6,27.27682]
[1747724182646,3.97792872,2545.9,2545.6,27.27682]
[1747724182850,0.05,2545.9,2545.8,0.7819]
[1747724183078,0.05,2545.9,2545.8,27.03804]
[1747724183246,0.05,2545.9,2545.8,31.631914]
[1747724183442,3.97788404,2545.9,2545.8,26.462217]
[1747724183651,3.97788404,2545.9,2545.8,28.728977]
[1747724184956,3.92819263,2545.7,2545.6,16.962]
[1747724185174,3.92819263,2545.7,2545.6,68.034518]
[1747724185583,3.92819263,2545.7,2545.6,64.710976]
[1747724185776,3.92810267,2545.8,2545.6,63.429856]
[1747724185977,0.05,2545.9,2545.8,8.8136]
[1747724186183,0.05,2545.9,2545.8,32.911605]
[1747724186364,0.05,2545.9,2545.8,36.738505]
[1747724187753,0.05,2545.9,2545.8,40.66654333]
[1747724187955,0.05,2545.9,2545.8,40.65644333]
[1747724188366,0.05,2545.9,2545.8,41.12370383]
[1747724188868,0.05,2545.9,2545.8,41.67370383]
[1747724189554,3.92671921,2546.7,2546.3,0.7703]
[1747724189754,3.92688444,2546.6,2546.4,33.035196]
[1747724190101,3.92688444,2546.6,2546.5,17.87659242]
[1747724190460,3.92688444,2546.6,2546.5,6.09869742]
[1747724191987,3.92667164,2546.7,2546.5,14.09869742]
[1747724191988,3.92675539,2546.7,2546.5,14.09869742]
[1747724192191,3.92675539,2546.7,2546.6,35.9366]
[1747724193388,3.92650634,2546.8,2546.6,35.9366]
[1747724193575,3.92665017,2546.7,2546.6,22.841]
[1747724194200,3.92665017,2546.7,2546.6,30.497359]
[1747724194410,3.92665017,2546.7,2546.6,22.841]
[1747724195298,3.92665017,2546.7,2546.6,31.862526]
[1747724195607,3.92665017,2546.7,2546.6,25.94266]
[1747724196660,4.71655017,2546.7,2546.6,24.515]
[1747724198307,13.58585582,2546.7,2546.6,24.515]
[1747724198798,12.71655017,2546.7,2546.6,24.515]
[1747724198954,4.71655017,2546.7,2546.6,24.515]
[1747724200803,3.92665017,2546.7,2546.6,24.515]
[1747724201731,3.92665017,2546.7,2546.6,68.489443]
[1747724201946,3.92665017,2546.7,2546.6,37.736958]
[1747724202624,3.92665017,2546.7,2546.6,24.515]
[1747724203003,3.92665017,2546.7,2546.6,16.954]
[1747724203004,4.70215017,2546.7,2546.6,16.954]
[1747724203207,5.49246582,2546.7,2546.6,24.512]
[1747724203432,4.70215017,2546.7,2546.6,24.512]
[1747724207604,12.70215017,2546.7,2546.6,24.512]
[1747724207804,4.70215017,2546.7,2546.6,24.512]
[1747724208205,14.26694385,2546.7,2546.6,24.512]
[1747724208946,6.26694385,2546.7,2546.6,24.512]
[1747724209336,7.29128887,2546.7,2546.6,24.512]
[1747724210261,7.29128887,2546.7,2546.6,16.954]
[1747724210432,15.29128887,2546.7,2546.6,24.512]
[1747724211447,4.7488755,2546.1,2546.0,8.0252605]
[1747724211629,6.27416918,2546.1,2546.0,8.0252605]
[1747724211816,7.29283515,2546.1,2546.0,8.0252605]
[1747724213153,7.29283515,2546.1,2546.0,7.558]
[1747724214640,4.74028404,2545.9,2545.8,16.952]
[1747724214808,6.26557772,2545.9,2545.8,24.511]
[1747724215014,7.83453492,2545.9,2545.8,24.511]
[1747724217649,6.30924124,2545.9,2545.8,24.511]
[1747724218051,6.69450441,2545.9,2545.8,24.511]
[1747724219380,7.24450441,2545.9,2545.8,24.511]
[1747724219596,3.92911869,2545.1,2545.0,17.4232605]
[1747724219735,3.92911869,2545.1,2545.0,24.9832605]
[1747724220137,3.92911869,2545.1,2545.0,16.956]
[1747724220434,3.92911869,2545.1,2545.0,24.516]
[1747724222538,3.92911869,2545.1,2545.0,24.517]
[1747724224763,5.56472926,2545.1,2545.0,24.517]
[1747724224952,5.56472926,2545.1,2545.0,16.956]
[1747724225275,6.11472926,2545.1,2545.0,24.518]
[1747724226462,3.93035412,2544.3,2544.2,0.8195]
[1747724226673,3.93035412,2544.3,2544.2,7.562]
[1747724232351,3.93025541,2544.4,2544.2,24.786446]
[1747724232549,3.93025541,2544.4,2544.3,25.604503]
[1747724232773,3.93025541,2544.4,2544.3,10.970492]
[1747724232958,3.93025541,2544.4,2544.3,8.0]
[1747724234050,3.93025541,2544.4,2544.3,14.24229]
[1747724235193,3.93025541,2544.4,2544.3,13.999963]
[1747724238624,0.7974,2545.2,2544.3,15.12978032]
[1747724238899,3.92967403,2544.8,2544.4,0.7558]
[1747724239090,3.92967403,2544.8,2544.6,8.7558]
[1747724239091,3.92984437,2544.7,2544.6,8.7558]
[1747724239390,3.92984437,2544.7,2544.6,28.72836]
[1747724239589,3.92984437,2544.7,2544.6,30.267624]
[1747724239968,3.92984437,2544.7,2544.6,30.64164132]
[1747724240594,3.92984437,2544.7,2544.6,36.53164132]
[1747724240793,3.92984437,2544.7,2544.6,31.74475832]
[1747724243504,3.92984437,2544.7,2544.6,48.70775832]
[1747724244789,3.92984437,2544.7,2544.6,41.95166432]
[1747724245017,3.92984437,2544.7,2544.6,42.41892482]
[1747724247713,3.92934057,2545.0,2544.7,0.7824]
[1747724248035,1.52732846,2545.8,2544.6,41.66312482]
[1747724248036,3.92854676,2545.5,2545.0,0.7824]
[1747724248318,3.92896432,2545.2,2545.1,28.803622]
[1747724248478,3.92896432,2545.2,2545.1,21.274102]
[1747724248673,3.92896432,2545.2,2545.1,15.56]
[1747724249213,3.92896432,2545.2,2545.1,25.73173]
[1747724249879,3.92896432,2545.2,2545.1,26.10574732]
[1747724251516,3.92883409,2545.3,2545.1,26.57438411]
[1747724251710,3.92883409,2545.3,2545.2,9.896815]
[1747724251949,3.92883409,2545.3,2545.2,0.8297]
[1747724252229,3.92883409,2545.3,2545.2,12.794515]
[1747724253006,3.92873137,2545.4,2545.3,8.0]
[1747724253206,3.92873137,2545.4,2545.2,0.8297]
[1747724253412,3.92873137,2545.4,2545.3,32.22709932]
[1747724253601,3.9285232,2545.5,2545.4,8.0]
[1747724253800,3.9285232,2545.5,2545.4,30.962282]
[1747724254537,3.9285232,2545.5,2545.4,24.66729932]
[1747724254838,3.9285232,2545.5,2545.4,14.99354932]
[1747724255941,3.9285232,2545.5,2545.4,14.60556132]
[1747724256500,3.9285232,2545.5,2545.4,8.37401732]
[1747724256901,3.9285232,2545.5,2545.4,7.93201732]
[1747724257445,3.9285232,2545.5,2545.4,7.558]
[1747724259246,3.92927308,2545.0,2544.9,0.46863679]
[1747724259549,3.92927308,2545.0,2544.9,8.02663679]
[1747724260508,3.92927308,2545.0,2544.9,7.9326771]
[1747724261121,3.92927308,2545.0,2544.9,30.5110731]
[1747724261343,3.92927308,2545.0,2544.9,28.4698551]
[1747724261761,3.92927308,2545.0,2544.9,25.7854651]
[1747724261950,3.92927308,2545.0,2544.9,23.3867121]
[1747724264051,3.92927308,2545.0,2544.9,18.4267121]
[1747724265124,3.92927308,2545.0,2544.9,15.9326771]
[1747724270661,3.92927308,2545.0,2544.9,32.8926771]
[1747724271439,3.92927308,2545.0,2544.9,33.36131389]
[1747724277969,3.92927308,2545.0,2544.9,32.8926771]
[1747724278354,4.74437308,2545.0,2544.9,32.8926771]
[1747724278672,4.74437308,2545.0,2544.9,38.7816771]
[1747724283700,3.92927308,2545.0,2544.9,38.7816771]
[1747724286502,3.92927308,2545.0,2544.9,17.80331389]
[1747724286700,5.95569126,2545.0,2544.9,25.35631389]
[1747724289013,7.48301972,2545.0,2544.9,17.80331389]
[1747724289173,8.03301972,2545.0,2544.9,17.80331389]
[1747724289369,8.03301972,2545.0,2544.9,0.84331389]
[1747724289982,5.30108189,2544.8,2544.7,7.554]
[1747724290183,8.4231856,2544.8,2544.7,7.554]
[1747724290738,8.82474046,2544.8,2544.7,7.554]
[1747724291522,3.92958189,2544.8,2544.7,7.554]
[1747724292681,3.92958189,2544.8,2544.7,7.92979133]
[1747724310855,11.92958189,2544.8,2544.7,7.92979133]
[1747724314769,3.92958189,2544.8,2544.7,7.92979133]
[1747724315265,3.92958189,2544.8,2544.7,0.37579133]
[1747724315569,15.46104093,2544.8,2544.7,0.37579133]
[1747724316244,11.92973631,2544.7,2544.6,16.964]
[1747724319066,3.92989074,2544.6,2544.5,7.547]
[1747724320473,3.92989074,2544.6,2544.5,7.92341633]
[1747724331186,6.06154448,2544.6,2544.5,7.92341633]
[1747724331382,16.36477294,2544.6,2544.5,7.92341633]
[1747724332905,16.91477294,2544.6,2544.5,0.37641633]
[1747724333109,16.91477294,2544.6,2544.2,17.43363679]
[1747724333110,4.73875412,2544.3,2544.2,17.43363679]
[1747724333285,14.26608258,2544.3,2544.2,17.43363679]
[1747724333486,16.47871783,2544.3,2544.2,17.43363679]
[1747724335005,16.47871783,2544.3,2544.2,16.965]
[1747724337623,16.47871783,2544.3,2544.1,0.05]
[1747724337624,12.6884086,2544.2,2544.1,0.05]
[1747724337805,13.2384086,2544.2,2544.1,0.05]